Cogmind - Beta 9.6 @@@ ROGUE MODE // 2020.06.09 @ 14:51:22 Player: Zinc Result: Destroyed by H-55 Commando with Assault Rifle Performance ------------- Evolutions (2) 1000 Regions Visited (5) 1000 Robots Destroyed (34) 170 Value Destroyed (654) 654 Prototype IDs (4) 80 Alien Tech Used (0) 0 Bonus (300) 300 TOTAL SCORE: 3204 Bonus ------- Aligned with FarCom 300 Cogmind --------- Core Integrity 0/550 Matter 34/300 Energy 75/100 System Corruption 0% Temperature Cool (0) Movement Core (1600) Ox31 Location -8/Materials Parts ------- > --- POWER (1) -------- (None) > --- PROPULSION (3) --- (None) > --- UTILITY (5) ------ Large Storage Unit Large Storage Unit Large Storage Unit Large Storage Unit High-capacity Storage Unit > --- WEAPON (2) ------- (None) > --- INVENTORY (36) --- Light Treads Wheel VTOL Module Medium Storage Unit Hacking Suite Trap Reconfigurator Firepult AWS/Autocannon Rocket Launcher Peak State ------------ > --- POWER ------------ Ion Engine > --- PROPULSION ------- Light Treads Light Treads > --- UTILITY ---------- Large Storage Unit > --- WEAPON ----------- Firepult > --- INVENTORY -------- Light Treads Light Treads Wheel Medium Storage Unit Hacking Suite EM Pulse Gun Small Laser Shotgun Rocket Launcher Rocket Launcher [Rating: 25] Favorites ----------- Power Ion Engine Engine Ion Engine Propulsion Light Treads Treads Light Treads Leg Aluminum Leg Utility Large Storage Unit Device Trap Reconfigurator Storage Large Storage Unit Weapon Shotgun Energy Gun Medium Laser Energy Cannon Firepult Ballistic Gun Shotgun Launcher Rocket Launcher Build | -11 -10 -10 -10 -9 -8 ------- Run | Scr Mat Min Exi Min Mat Slots Evolved 4 | . . . . . 4 Power . | . . . . . . Propulsion 1 | . . . . . 1 Utility 3 | . . . . . 3 Weapon . | . . . . . . Parts Attached 28 | . 12 . 5 3 8 Power 1 | . 1 . . . . Engine 1 | . 1 . . . . Core . | . . . . . . Reactor . | . . . . . . Propulsion 5 | . 3 . . 1 1 Treads 5 | . 3 . . 1 1 Leg . | . . . . . . Wheel . | . . . . . . Hover . | . . . . . . Flight . | . . . . . . Utility 10 | . 3 . 2 1 4 Device 1 | . . . 1 . . Storage 9 | . 3 . 1 1 4 Processor . | . . . . . . Hackware . | . . . . . . Protection . | . . . . . . Artifact . | . . . . . . Weapon 12 | . 5 . 3 1 3 Energy Gun 1 | . . . . . 1 Energy Cannon 1 | . . . 1 . . Ballistic Gun 8 | . 4 . 2 1 1 Ballistic Cannon . | . . . . . . Launcher 2 | . 1 . . . 1 Special Weapon . | . . . . . . Impact Weapon . | . . . . . . Slashing Weapon . | . . . . . . Piercing Weapon . | . . . . . . Special Melee Weapon . | . . . . . . Unidentified Prototypes 2 | . . . 2 . . Parts Lost 11 | . 1 . . 2 8 Power 2 | . 1 . . . 1 Propulsion 4 | . . . . 1 3 Utility . | . . . . . . Weapon 5 | . . . . 1 4 Highest Loss Streak 7 | . 1 . . 2 7 Average Slot Usage (%) 96 | . 96 100 98 99 84 Engine 13 | . 13 14 14 14 8 Treads 27 | . 28 28 28 27 20 Storage 27 | . 25 28 27 28 39 Ballistic Gun 25 | . 26 28 27 28 13 Naked Turns . | . . . . . . Heaviest Build 108 | 10 43 43 43 59 108 Greatest Support 62 | 20 40 40 40 40 62 Greatest Overweight (x) 31 | . 1 1 1 1 31 Average Overweight (x) . | . . 1 . 1 1 Largest Inventory Capacity 36 | . 16 16 16 18 36 Average Capacity 15 | . 9 16 15 17 32 Most Carried 17 | . 12 12 15 17 15 Average Carried 11 | . 8 11 13 16 13 Final Capacity 36 | 6 16 16 16 18 36 Final Carried 15 | 6 10 12 15 15 12 Class Distribution -------------------- 92% | Mutant 7% | Hauler-Mutant Dominant Class ---------------- Mutant | -10/Materials Mutant | -10/Mines Mutant | -10/Exiles Mutant | -9/Mines Hauler-Mutant | -8/Materials Resources | -11 -10 -10 -10 -9 -8 ----------- Run | Scr Mat Min Exi Min Mat Matter Collected 798 | 200 373 54 . 154 17 Remotely . | . . . . . . Salvage Created 720 | . 427 54 . 152 87 Parts 61 | . 35 5 . 12 9 Haulers Intercepted 2 | . 2 . . . . Recyclers Shooed . | . . . . . . Parts Field Recycled . | . . . . . . Retrieved Matter . | . . . . . . Parts Self-Destructed . | . . . . . . Prevented . | . . . . . . Kills | -11 -10 -10 -10 -9 -8 ------- Run | Scr Mat Min Exi Min Mat Combat Hostiles Destroyed 23 | . 12 1 . 5 5 Guns 13 | . 7 1 . 5 . AOE 10 | . 5 . . . 5 Classes Destroyed 8 | . 6 1 . 1 . Worker 3 | . . 1 . . 2 Builder 2 | . . . . 1 1 Hauler 2 | . 2 . . . . Mechanic 1 | . 1 . . . . Operator 2 | . 2 . . . . Watcher 1 | . 1 . . . . Swarmer 12 | . 6 . . 3 3 Grunt 11 | . 6 1 . 2 2 Best Kill Streak 6 | . 3 1 . 4 6 Combat Bots Only 5 | . 3 1 . 3 5 Max Kills in Single Turn 3 | . 3 1 . 2 2 Gunslinging 1 | . 1 . . . . Exploded 3 | . 3 . . . 1 Melee . | . . . . . . Uniques/NPCs Destroyed . | . . . . . . Combat | -11 -10 -10 -10 -9 -8 -------- Run | Scr Mat Min Exi Min Mat Damage Taken 2606 | . 529 30 . 184 1863 Core 685 | . 95 12 . 28 550 Absorbed by Shields . | . . . . . . Core Remaining (%) 73 | 100 . . . 46 . Volleys Fired 83 | . 47 7 . 13 16 Largest 2 | . 2 2 . 2 2 Hottest 56 | . 53 46 . 46 56 Shots Fired 151 | . 94 14 . 25 18 Gun 135 | . 90 14 . 25 6 Cannon . | . . . . . . Launcher 16 | . 4 . . . 12 Special . | . . . . . . Kinetic 132 | . 90 14 . 25 3 Thermal . | . . . . . . Explosive 16 | . 4 . . . 12 Electromagnetic 3 | . . . . . 3 Robot Hit Streak 9 | . 9 4 . 8 6 Robot Miss Streak 3 | . 3 3 . 3 2 Penetration Max . | . . . . . . Secondary Targets 2 | . 1 . . 1 . Max Gunslinging Chain 1 | . 1 . . 1 . Shots Hit Robots 102 | . 65 9 . 19 9 Core Hits 62 | . 32 5 . 9 16 Critical Hits 3 | . 1 1 . 1 . Critical Kills . | . . . . . . Critical Parts Destroyed 3 | . 1 1 . 1 . Melee Attacks . | . . . . . . Impact . | . . . . . . Slashing . | . . . . . . Piercing . | . . . . . . Sneak Attacks . | . . . . . . Combat Hostiles . | . . . . . . Follow-up Attacks . | . . . . . . Damage Inflicted 2259 | . 1149 129 . 227 754 Guns 1248 | . 851 129 . 227 41 Cannons . | . . . . . . Explosions 1011 | . 298 . . . 713 Melee . | . . . . . . Ramming . | . . . . . . Kinetic 1223 | . 851 129 . 227 16 Thermal . | . . . . . . Explosive 1011 | . 298 . . . 713 Electromagnetic 25 | . . . . . 25 Impact . | . . . . . . Slashing . | . . . . . . Piercing . | . . . . . . Highest Corruption . | . . . . . . Average Corruption . | . . . . . . Corruption Purged . | . . . . . . Overload Shots . | . . . . . . Overflow Damage 7 | . . . . . 7 Projectiles . | . . . . . . Explosions 7 | . . . . . 7 Melee . | . . . . . . Knockbacks . | . . . . . . Impact . | . . . . . . Kinetic . | . . . . . . Secondary . | . . . . . . Self-Inflicted Damage 50 | . . . . . 50 Shots 2 | . . . . . 2 Rammed . | . . . . . . Targets Rammed . | . . . . . . Kicked . | . . . . . . Crushed . | . . . . . . Highest Temperature 9 | . 9 4 . 4 1 Average Temperature 3 | . 3 2 . 4 1 Received Heat Transfer 615 | . 243 15 . 87 270 Siege Activations . | . . . . . . Robots Corrupted . | . . . . . . Combat Hostiles . | . . . . . . Parts Fried . | . . . . . . Impact Corruptions . | . . . . . . Robots Melted . | . . . . . . Combat Hostiles . | . . . . . . Parts Melted . | . . . . . . Heat Transferred . | . . . . . . Parts Sabotaged . | . . . . . . Parts Stolen . | . . . . . . Parts Stripped . | . . . . . . Power Chain Reactions . | . . . . . . Missiles Intercepted . | . . . . . . Alert | -11 -10 -10 -10 -9 -8 ------- Run | Scr Mat Min Exi Min Mat Peak Influence 207 | . 180 28 . 71 207 Average Influence 56 | . 68 20 . 20 78 Maximum Alert Level 1 | . . . . . 1 Low Security (%) 99 | . 100 100 . 100 93 Level 1 . | . . . . . 6 Level 2 . | . . . . . . Level 3 . | . . . . . . Level 4 . | . . . . . . Level 5 . | . . . . . . High Security . | . . . . . . Max Security . | . . . . . . Squads Dispatched 3 | . 2 . . . 1 Investigation 2 | . 1 . . . 1 Extermination . | . . . . . . Reinforcement 1 | . 1 . . . . Assault . | . . . . . . Garrison . | . . . . . . Intercept . | . . . . . . Construction Impeded . | . . . . . . Haulers Reinforced . | . . . . . . Stealth | -11 -10 -10 -10 -9 -8 --------- Run | Scr Mat Min Exi Min Mat Distress Signals 1 | . 1 . . . . Communications Jammed . | . . . . . . Distress Signals . | . . . . . . Times Spotted 46 | . 29 3 . 5 9 Peak Tracking Total 5 | . 4 2 . 3 5 Tactical Retreats 5 | . 3 2 . . . Traps | -11 -10 -10 -10 -9 -8 ------- Run | Scr Mat Min Exi Min Mat Traps Triggered 2 | . 1 . . . 1 Indirectly . | . . . . . . Trap Hack Attempts . | . . . . . . Triggered . | . . . . . . Disarmed . | . . . . . . Reprogrammed . | . . . . . . Reused . | . . . . . . Traps Extracted . | . . . . . . Installed . | . . . . . . Triggered . | . . . . . . Machines | -11 -10 -10 -10 -9 -8 ---------- Run | Scr Mat Min Exi Min Mat Machines Disabled 3 | . 3 . . . . Max in Single Turn 2 | . 2 . . . . Machines Sabotaged . | . . . . . . Garrisons Compromised . | . . . . . . Overloaded Fab Kills . | . . . . . . Fab Network Shutdowns . | . . . . . . Hacking | -11 -10 -10 -10 -9 -8 --------- Run | Scr Mat Min Exi Min Mat Machines Accessed 6 | . 2 . 4 . . Terminals 2 | . 2 . . . . Fabricators . | . . . . . . Repair Stations . | . . . . . . Recycling Units . | . . . . . . Scanalyzers . | . . . . . . Garrison Access . | . . . . . . Total Hacks 61 | . 13 . 48 . . Successful 57 | . 9 . 48 . . Failed 4 | . 4 . . . . Catastrophic . | . . . . . . Database Lockouts . | . . . . . . Manual 10 | . 7 . 3 . . Terminals 13 | . 13 . . . . Fabricators . | . . . . . . Repair Stations . | . . . . . . Recycling Units . | . . . . . . Scanalyzers . | . . . . . . Garrison Access . | . . . . . . Terminal Hacks 57 | . 9 . 48 . . Record 48 | . . . 48 . . Prototype ID Bank 4 | . 4 . . . . Branch Access Points 1 | . 1 . . . . Unreport Threat 1 | . 1 . . . . Registered Prototypes 1 | . 1 . . . . Zone Layout 2 | . 2 . . . . Fabricator Hacks . | . . . . . . Repair Station Hacks . | . . . . . . Recycling Unit Hacks . | . . . . . . Scanalyzer . | . . . . . . Garrison Access Hacks . | . . . . . . Unauthorized Hacks . | . . . . . . Terminals . | . . . . . . Fabricators . | . . . . . . Repair Stations . | . . . . . . Recycling Units . | . . . . . . Scanalyzers . | . . . . . . Garrison Access . | . . . . . . Data Cores Recovered . | . . . . . . Used . | . . . . . . Hacking Detections 2 | . 2 . . . . Full Trace Events . | . . . . . . Feedback Events . | . . . . . . Feedback Blocked . | . . . . . . Robot Schematics Acquired . | . . . . . . Robots Built . | . . . . . . Matter . | . . . . . . Time . | . . . . . . Total Robot Build Rating . | . . . . . . Part Schematics Acquired . | . . . . . . Parts Built . | . . . . . . Matter . | . . . . . . Time . | . . . . . . Total Part Build Rating . | . . . . . . Parts Repaired . | . . . . . . Time . | . . . . . . Parts Recycled . | . . . . . . Recycled Matter . | . . . . . . Retrieved Matter . | . . . . . . Retrieved Components . | . . . . . . Parts Scanalyzed . | . . . . . . Part Schematics Acquired . | . . . . . . Parts Damaged . | . . . . . . Bothacking | -11 -10 -10 -10 -9 -8 ------------ Run | Scr Mat Min Exi Min Mat Used RIF Installer . | . . . . . . Robots Hacked . | . . . . . . Non-combat . | . . . . . . Combat . | . . . . . . Robot Hacks Applied . | . . . . . . Relay Couplers Released . | . . . . . . Robots Rewired . | . . . . . . Allies Hacked . | . . . . . . Hacks Repelled . | . . . . . . Allies | -11 -10 -10 -10 -9 -8 -------- Run | Scr Mat Min Exi Min Mat Total Allies 2 | . . . . 2 . Largest Group 2 | . . . . 2 . Highest-Rated Group 38 | . . . . 38 . Highest-Rated Ally 31 | . . . . 31 . Total Orders . | . . . . . . Ally Attacks 6 | . . . . 6 . Total Damage 42 | . . . . 42 . Kills . | . . . . . . Allies Corrupted . | . . . . . . Allies Melted . | . . . . . . Intel | -11 -10 -10 -10 -9 -8 ------- Run | Scr Mat Min Exi Min Mat Robot Analysis Total . | . . . . . . Derelict Logs Recovered 2 | . . 1 . 1 . Drone Launches . | . . . . . . Drone Recoveries . | . . . . . . Exploration | -11 -10 -10 -10 -9 -8 ------------- Run | Scr Mat Min Exi Min Mat Turns Passed 2858 | . 1097 254 948 293 266 Spaces Moved 1465 | 1 560 127 521 140 116 Core 2 | . . . . . 2 Treads 1462 | . 560 127 521 140 114 Legs 1 | 1 . . . . . Wheels . | . . . . . . Hover . | . . . . . . Flight . | . . . . . . Fastest Speed 120 | 120 160 180 160 180 155 Average Speed 174 | 120 162 180 179 180 202 Slowest Speed 1600 | 120 180 180 180 180 1600 Overloaded Moves . | . . . . . . Propulsion Burnouts . | . . . . . . Robots Hopped . | . . . . . . Cave-ins Triggered . | . . . . . . Exploration Rate (%) 40 | 2 63 33 91 38 15 Regions Visited 5 Branch Regions 3 Pre-discovered Areas 1 | . . . 1 . . Known Exits Taken 1 | . 1 . . . . Unknown Exits Taken 4 | 1 . 1 1 1 . Scrap Searched 1 | . . . . 1 . Spaces Dug . | . . . . . . Terrain Destroyed 81 | . 19 . . . 62 Melee . | . . . . . . Projectile . | . . . . . . AOE 81 | . 19 . . . 62 Actions | -11 -10 -10 -10 -9 -8 --------- Run | Scr Mat Min Exi Min Mat Total 1627 | . 656 139 536 156 140 Wait 20 | . 16 4 . . . Move 1460 | . 559 126 520 139 116 Hop . | . . . . . . Pick Up 18 | . 11 2 4 1 . Fast Attach 11 | . 4 . 5 . 2 Attach 9 | . 3 . . 2 4 Detach . | . . . . . . Swap 8 | . 5 . . 1 2 Drop 18 | . 11 . 7 . . Fire 83 | . 47 7 . 13 16 Melee . | . . . . . . Ram . | . . . . . . Kick . | . . . . . . Crush . | . . . . . . Escape Stasis . | . . . . . . Rewire . | . . . . . . Trap . | . . . . . . Miscellaneous . | . . . . . . Route ------- -11/Scrapyard -10/Materials (discovered 2 exits: [*Mat] / *Min) -10/Mines -10/Exiles (discovered 2 exits: [*Min x2]) -9/Mines -8/Materials History --------- Turn | Location | Event 1 | -11/Scrapyard | Discovered new exit (range 0) 1 | -11/Scrapyard | Entered Materials 184 | -10/Materials | Identified exit to Mines 313 | -10/Materials | Build established: Mutant 601 | -10/Materials | Discovered new exit (range 15) 1098 | -10/Materials | Entered Mines 1230 | -10/Mines | Learned Materials stockpile data 1345 | -10/Mines | Deemed a non-threat by the Exiles lab entrance 1345 | -10/Mines | Discovered new exit (range 5) 1352 | -10/Mines | Entered Exiles 1397 | -10/Exiles | Met 8R-AWN 1408 | -10/Exiles | Discovered new exit (range 14) 1464 | -10/Exiles | Met EX-HEX 1522 | -10/Exiles | Met EX-BIN 1678 | -10/Exiles | Aligned with FarCom system 1680 | -10/Exiles | Given EX-Vault access code 1723 | -10/Exiles | Opened EX-Vault 1733 | -10/Exiles | Found Prototype Device 1733 | -10/Exiles | Identified Trap Reconfigurator 1741 | -10/Exiles | Found Prototype Energy Cannon 1741 | -10/Exiles | Identified Firepult 1791 | -10/Exiles | Found Prototype Ballistic Cannon 1826 | -10/Exiles | Warned to stay clear of 0b10 Research branches 1878 | -10/Exiles | Met EX-DEC 1937 | -10/Exiles | Visited The Gauntlet 2183 | -10/Exiles | Learned location of Zion (-7) 2276 | -10/Exiles | Discovered new exit (range 14) 2300 | -10/Exiles | Stole three prototypes: Trap Reconfigurator, Firepult, AWS/Autocannon 2300 | -10/Exiles | Entered Mines 2387 | -9/Mines | Learned Materials stockpile data 2543 | -9/Mines | Core integrity fell below 50% 2573 | -9/Mines | Discovered new exit (range 11) 2593 | -9/Mines | Entered Materials 2593 | -8/Materials | Evolved 4 slots: Propulsion x1, Utility x3 2836 | -8/Materials | Core integrity fell below 50% 2852 | -8/Materials | Core integrity fell below 20% 2859 | -8/Materials | Destroyed by H-55 Commando with Assault Rifle Last Messages --------------- 02846_ U-05 Engineer lays Concrete. 02847_ K-01 Serf collects debris. 02847_ U-05 Engineer lays Concrete. 02848_ Penetrated by Slug. 02849_ U-05 Engineer lays Concrete. 02849_ Penetrated by Slug. 02849_ U-05 Engineer lays Concrete. 02849_ Shotgun destroyed. 02850_ T-07 Excavator is excavating. 02850_ U-05 Engineer lays Concrete. 02851_ Penetrated by Slug. 02853_ U-05 Engineer lays Concrete. 02853_ T-07 Excavator is excavating. 02854_ U-05 Engineer lays Concrete. 02855_ K-01 Serf collects debris. 02856_ Penetrated by Slug. 02856_ EM Pulse Gun destroyed. 02856_ U-05 Engineer lays Concrete. 02857_ T-07 Excavator is excavating. 02859_ U-05 Engineer lays Concrete. Map ----- +----------------------------------------------------+ | ?????????????????????????????????????????????????? | | ????????????? ???????????????????????????????????? | | ????????????? ?????????????????????????????????? | | ????????????? #????????????????????????????????? | | ????????????? ###??????????????????????????????? | | ???????????? # ?????????????????????????????? | | ???????????? +????o?????????????????????????? | | ???????????? #??????????????????????????????? | | ???????????? #??????????????????????????????? | | ???????????? #??????????????????????????????? | | ???????????? #??????????????????????????????? | | ####???????? ##????+????????????????????????? | | #!!######### g #???? ????????????????????????? | | ! #???# ????????????????????????? | | g #???# ????????????????????????? | | #???# ????????????????????????? | | ! #???# ????????????????????????? | | #!! #############???# ????????????????????????? | | #### #???????????????# #???????????????????????? | | ## ##??????????????# #???????????????????????? | | # #????????????### ####????????????????????? | | # #????????????# ????????????????????? | | + #????????????# #?????????????????????? | | " # #?????######## h #?????????????????????? | | " # #?????# #k k #?????????????????????? | | " ## ##?????# t @ #?????????????????????? | | ## #????### u# #????????? #??????????? | | #### #?#### #### # ##?????? #??????????? | | ???# #?# # ##???##+ ##??????????? | | ???# ### # ## hY#### #??????????? | | ???# =%! ##?????????? | | ???# ### ## | =%* ????????? | | ???#####?## ## # # ????????? | | ??????????## ## ] ????????? | | ???????????######## u #?????????? | | ??????????????????### ### ##?????????? | | ????????????????? Y #### # ##??????????? | | ??????????????# != #????#?????????????? | | ??????????????# == #??????????????????? | | ??????????????# #??????????????????? | | ??????????????# #??????????????????? | | ?????????????# #??????????????????? | | ?????????????## ! "" " #??????????????????? | | ??????????????# """" """" #??????????????????? | | ??????????????# """ """ #??????????????????? | | ??????????????# ?? ? #??????????????????? | | ??????????????#######???#???#????????????????????? | | | | | | | +----------------------------------------------------+ Best States ------------- Heat Dissipation 31 Energy Generation 10 Energy Capacity 250 Matter Stores 300 Matter Capacity 300 Sight Range 16 Terrain Scan Density 10 Evasion (%) 40 Recoil Reduction 3 Item Schematics ----------------- None Robot Schematics ------------------ None Fabricated ------------ Nothing Alien Tech Used ----------------- None Achievements -------------- None Challenges ------------ None Game ------ Seed ChainBiocellActivator Manual? 0 Play Time 00:17:40 Cumulative 85.6 hours Start 2020.06.09 @ 14:36:16 End 2020.06.09 @ 14:51:22 Sessions 1 Manual Loads 0 Difficulty Rogue Special Mode None Game No. 107 Rogue 107 Adventurer 0 Explorer 0 Win Type - Total 2 Types 2/0/0/0/0/0/0 Lore% 65 Gallery% 58 Achievement% 50 Wizard Run 0 Options --------- ASCII 0 Keyboard 0 Movement Mouse Keybinds 0 Fullscreen 2 Font 18/SmallcapsGlow Map View 76x50 Tactical HUD 1 Map Filters NONE Filters NONE Steam 1 RUN: 0b7363a3-cf85-4304-b92c-f31905136e69